[Event "Romanian Superliga 2024"]
[Site "Mamaia"]
[Date "2024.09.30"]
[Round "3.9"]
[White "Miron, Lucian-Costin"]
[Black "Grigore, George-Gabriel"]
[Result "1/2-1/2"]
[ECO "B54"]
[WhiteElo "2473"]
[BlackElo "2414"]
[Annotator "TA"]
[PlyCount "55"]
[EventDate "2024.09.26"]
[EventType "team-tourn"]
[EventCountry "ROU"]
[SourceTitle "playchess.com"]
[Source "ChessBase"]
[SourceQuality "1"]
[TimeControl "40/5400+30:1800+30"]

{[%evp 10,55,26,16,4,23,14,4,63,28,31,25,33,39,89,107,101,94,104,102,96,94,109,102,89,72,57,49,115,105,119,150,112,0,81,73,109,95,102,107,106,93,99,0,110,0,107,0]} 1. e4 {[%emt 0:00:16]} c5 {[%emt 0:00:09]} 2. Nc3 {[%emt 0:00:10]} Nc6 {[%emt 0:00:34]} 3. Nge2 {[%emt 0:00:06]} d6 {[%emt 0:07:01]} 4. d4 {[%emt 0:00:16]} cxd4 {[%emt 0:00:19]} 5. Nxd4 {[%emt 0:00:06]} e5 {[%emt 0:00:11]} 6. Nf5 {[%emt 0:00:05]} Bxf5 {[%emt 0:04:47]} 7. exf5 {[%emt 0:00:27]} Qd7 {[%emt 0:06:33] Black is weak on the light squares} 8. Bc4 {[%emt 0:00:58]} g6 {[%emt 0:17:28]} ({Better is} 8... Nf6 $11) 9. Nd5 {[%emt 0:34:08][%cal Bc3d5,Bd5e3,Be3f5][%mdl 32]} gxf5 {[%emt 0:05:46]} 10. Bg5 {[%emt 0:01:34]} (10. O-O {simplifies} Bg7 11. f4 Nge7 12. Nxe7 Qxe7 13. c3) 10... Be7 {[%emt 0:17:47] Dodges Bf6} 11. Qh5 {[%emt 0:04:38] And now Nxe7 would win.} Bxg5 {[%emt 0:02:58]} (11... O-O-O $1 $14) 12. Qxg5 $16 {[%emt 0:00:41]} Kf8 {[%emt 0:07:40] Inhibits Qg7+.} 13. Ne3 $36 {[%emt 0:28:09][%mdl 3072] White has strong compensation. White has strong initiative. White has more active pieces. The black rooks are passive.} f4 {[%emt 0:03:17]} 14. Nf5 {[%emt 0:03:28]} f6 {[%emt 0:00:21] [#]} 15. Qh5 {[%emt 0:00:26]} d5 {[%emt 0:02:18]} 16. O-O-O {[%emt 0:11:49]} Nce7 {[%emt 0:01:08]} 17. Nxe7 {[%emt 0:03:33]} (17. Rxd5 {with more complications.} Nxd5 18. Rd1 Qe8 19. Qh3) 17... Nxe7 {[%emt 0:00:15]} 18. g3 {[%emt 0:02:30] Hoping for gxf4.} Rc8 {[%emt 0:13:05]} (18... Rd8 $14) 19. Bb3 {[%emt 0:00:38]} a5 {[%emt 0:00:40][%cal Ba7a5,Ba5a4][%mdl 32] [#] Threatens to win with ...a4.} 20. Qh6+ {[%emt 0:02:26]} Kf7 {[%emt 0:00:57] ...a4 would now be deadly.} 21. Qh5+ {[%emt 0:00:01]} Kf8 {[%emt 0:01:01] White must now prevent ...a4.} 22. a3 {[%emt 0:01:25] gxf4 is the strong threat.} a4 {[%emt 0:02:05]} 23. Ba2 {[%emt 0:00:01] aiming for gxf4.} fxg3 {[%emt 0:00:38]} 24. hxg3 {[%emt 0:01:24]} Rc5 {[%emt 0:02:01]} 25. Qh6+ {[%emt 0:01:18]} Kf7 {[%emt 0:00:07]} 26. Qh5+ {[%emt 0:00:00]} Kf8 $1 {[%emt 0:00:53]} 27. Qh6+ {[%emt 0:01:21]} Kf7 {[%emt 0:00:05]} 28. Qh5+ {[%emt 0:00:21] Weighted Error Value: White=0.27 (precise) /Black=0.14 (very precise) .  Mistake:       	White=1     	Black=3      Inaccurate:     	White=1     	Black=1      OK:         	White=7     	Black=8      Best:        	White=3     	Black=5      Strong:       	---       	Black=1} (28. c3 $16) 1/2-1/2

[Event "Romanian Superliga 2024"]
[Site "Mamaia"]
[Date "2024.09.30"]
[Round "3.10"]
[White "Istratescu, Andrei"]
[Black "Filip, Lucian-Ioan"]
[Result "1/2-1/2"]
[ECO "E94"]
[WhiteElo "2370"]
[BlackElo "2341"]
[Annotator "RC"]
[PlyCount "20"]
[EventDate "2024.09.26"]
[EventType "team-tourn"]
[EventCountry "ROU"]
[SourceTitle "playchess.com"]
[Source "ChessBase"]
[SourceQuality "1"]
[TimeControl "40/5400+30:1800+30"]

1. c4 {[%emt 0:00:12]} Nf6 {[%emt 0:00:32]} 2. Nf3 {[%emt 0:02:03]} g6 {[%emt 0:01:23]} 3. Nc3 {[%emt 0:04:35]} Bg7 {[%emt 0:00:14]} 4. e4 {[%emt 0:04:15]} d6 {[%emt 0:00:04]} 5. d4 {[%emt 0:00:03]} O-O {[%emt 0:00:04]} 6. Be2 {[%emt 0:00:37]} e5 {[%emt 0:00:05]} 7. O-O {[%emt 0:03:11]} Bg4 {[%emt 0:05:39]} 8. d5 {[%emt 0:01:16]} a5 {[%emt 0:00:17]} 9. Ne1 {[%emt 0:08:27]} Bxe2 {[%emt 0:04:58]} 10. Qxe2 {[%emt 0:00:08]} Na6 {[%emt 0:00:25]} 1/2-1/2

[Event "Romanian Superliga 2024"]
[Site "Mamaia"]
[Date "2024.09.30"]
[Round "3.11"]
[White "Carmaciu, Lucian-Catalin"]
[Black "Stepanencu, Nicodim-Cosmin"]
[Result "1/2-1/2"]
[ECO "D00"]
[WhiteElo "2368"]
[BlackElo "2296"]
[Annotator "RC"]
[PlyCount "119"]
[EventDate "2024.09.26"]
[EventType "team-tourn"]
[EventCountry "ROU"]
[SourceTitle "playchess.com"]
[Source "ChessBase"]
[SourceQuality "1"]
[TimeControl "40/5400+30:1800+30"]

1. d4 {[%emt 0:00:05]} d5 {[%emt 0:00:08]} 2. Bf4 {[%emt 0:00:15]} c5 {[%emt 0:00:21]} 3. Nc3 {[%emt 0:00:38]} Nc6 {[%emt 0:00:13]} 4. e4 {[%emt 0:01:18]} cxd4 {[%emt 0:00:06]} 5. exd5 {[%emt 0:00:15]} dxc3 {[%emt 0:00:14]} 6. dxc6 {[%emt 0:00:07]} Qxd1+ {[%emt 0:00:07]} 7. Rxd1 {[%emt 0:00:09]} bxc6 {[%emt 0:00:04]} 8. Bc7 {[%emt 0:00:45]} e6 {[%emt 0:00:27]} 9. b3 {[%emt 0:01:29]} Nf6 {[%emt 0:03:47]} 10. Ba5 {[%emt 0:03:22]} Nd5 {[%emt 0:01:01]} 11. Ne2 {[%emt 0:00:31]} Ba6 {[%emt 0:22:09]} 12. Nxc3 {[%emt 0:00:58]} Bxf1 {[%emt 0:00:05]} 13. Rxf1 {[%emt 0:00:13]} Rb8 {[%emt 0:00:35]} 14. g3 {[%emt 0:13:38]} h5 {[%emt 0:21:06]} 15. Ke2 {[%emt 0:06:56]} Bb4 {[%emt 0:03:23]} 16. Bxb4 {[%emt 0:00:28]} Rxb4 {[%emt 0:00:03]} 17. Nb1 {[%emt 0:02:08]} Re4+ {[%emt 0:03:26]} 18. Kf3 {[%emt 0:00:21]} Re5 {[%emt 0:00:05]} 19. c4 {[%emt 0:03:04]} Nb4 {[%emt 0:07:49]} 20. Nc3 {[%emt 0:03:24]} h4 {[%emt 0:04:21]} 21. Rfe1 {[%emt 0:07:03]} Rf5+ {[%emt 0:03:51]} 22. Kg2 {[%emt 0:00:29]} hxg3 {[%emt 0:00:17]} 23. hxg3 {[%emt 0:00:08]} Rfh5 {[%emt 0:00:04]} 24. a3 {[%emt 0:02:59]} Rh2+ {[%emt 0:03:17]} 25. Kf3 {[%emt 0:01:32]} Na6 {[%emt 0:00:11]} 26. b4 {[%emt 0:02:34]} Ke7 {[%emt 0:01:52]} 27. Re5 {[%emt 0:05:42]} Nb8 {[%emt 0:02:01]} 28. Ra5 {[%emt 0:04:16]} a6 {[%emt 0:00:04]} 29. Ne4 {[%emt 0:00:28]} Rh1 {[%emt 0:00:29]} 30. Rxh1 {[%emt 0:10:21]} Rxh1 {[%emt 0:00:10]} 31. Nc5 {[%emt 0:06:00]} Rc1 {[%emt 0:05:33]} 32. Nxa6 {[%emt 0:00:08]} Nxa6 {[%emt 0:00:03]} 33. Rxa6 {[%emt 0:00:06]} Rxc4 {[%emt 0:00:03]} 34. Ke3 {[%emt 0:00:16]} f5 {[%emt 0:00:20]} 35. Kd3 {[%emt 0:00:50]} Rc1 {[%emt 0:00:04]} 36. a4 {[%emt 0:02:15]} g5 {[%emt 0:02:49]} 37. a5 {[%emt 0:00:16]} Kd7 {[%emt 0:01:50]} 38. Ra7+ {[%emt 0:04:54]} Kd6 {[%emt 0:00:18]} 39. Rg7 {[%emt 0:01:13]} g4 {[%emt 0:03:28]} 40. a6 {[%emt 0:00:00]} Ra1 {[%emt 0:00:00]} 41. a7 {[%emt 0:03:02]} Rd1+ {[%emt 0:00:33]} 42. Ke3 {[%emt 0:05:46]} Ra1 {[%emt 0:00:18]} 43. Kf4 {[%emt 0:00:31]} Ra4 {[%emt 0:00:16]} 44. Kg5 {[%emt 0:01:13]} Ke5 {[%emt 0:00:06]} 45. Re7 {[%emt 0:04:34]} Ra6 {[%emt 0:09:07]} 46. Kg6 {[%emt 0:02:34]} f4 {[%emt 0:00:33]} 47. Kf7 {[%emt 0:03:42]} fxg3 {[%emt 0:00:35]} 48. fxg3 {[%emt 0:00:17]} Kf5 {[%emt 0:01:05]} 49. Ke8 {[%emt 0:05:23]} Ke4 {[%emt 0:03:39]} 50. Kd8 {[%emt 0:05:21]} Kf3 {[%emt 0:00:13]} 51. Kc8 {[%emt 0:00:26]} Ra4 {[%emt 0:00:14]} 52. Rb7 {[%emt 0:00:11]} Kxg3 {[%emt 0:09:17]} 53. Kb8 {[%emt 0:02:20]} e5 {[%emt 0:01:00]} 54. a8=Q {[%emt 0:00:14]} Rxa8+ {[%emt 0:00:04]} 55. Kxa8 {[%emt 0:00:05]} e4 {[%emt 0:00:03]} 56. Re7 {[%emt 0:01:45]} Kf3 {[%emt 0:00:03]} 57. Rf7+ {[%emt 0:01:23]} Kg3 {[%emt 0:00:05]} 58. Re7 {[%emt 0:03:32]} Kf3 {[%emt 0:00:06]} 59. Rf7+ {[%emt 0:03:46]} Kg3 {[%emt 0:00:09]} 60. Re7 {[%emt 0:00:35]} 1/2-1/2

[Event "Romanian Superliga 2024"]
[Site "Mamaia"]
[Date "2024.09.30"]
[Round "3.12"]
[White "Szabo, Attila"]
[Black "Nastore, Pavel-Alexandru"]
[Result "0-1"]
[ECO "A21"]
[WhiteElo "2137"]
[BlackElo "2252"]
[Annotator "RC"]
[PlyCount "38"]
[EventDate "2024.09.26"]
[EventType "team-tourn"]
[EventCountry "ROU"]
[SourceTitle "playchess.com"]
[Source "ChessBase"]
[SourceQuality "1"]
[TimeControl "40/5400+30:1800+30"]

1. c4 {[%emt 0:00:09]} e5 {[%emt 0:00:12]} 2. Nc3 {[%emt 0:00:23]} Bb4 {[%emt 0:00:04]} 3. g3 {[%emt 0:02:53]} h5 {[%emt 0:03:12]} 4. h4 {[%emt 0:02:29]} a5 {[%emt 0:01:01]} 5. Bg2 {[%emt 0:00:23]} Nc6 {[%emt 0:00:17]} 6. d3 {[%emt 0:07:38]} d6 {[%emt 0:02:21]} 7. e4 {[%emt 0:04:33]} Bg4 {[%emt 0:11:58]} 8. f3 {[%emt 0:03:57]} Be6 {[%emt 0:01:36]} 9. Bg5 {[%emt 0:05:03]} Qd7 {[%emt 0:02:27]} 10. Nge2 {[%emt 0:00:46]} Bc5 {[%emt 0:01:26]} 11. Qd2 {[%emt 0:00:09]} Nd4 {[%emt 0:08:11]} 12. Qc1 {[%emt 0:09:55]} f6 {[%emt 0:05:06]} 13. Bd2 {[%emt 0:00:00]} Nxe2 {[%emt 0:02:49]} 14. Nxe2 {[%emt 0:02:31]} Ne7 {[%emt 0:00:31]} 15. Be3 {[%emt 0:03:33]} Nc6 {[%emt 0:06:32]} 16. a3 {[%emt 0:06:27]} a4 {[%emt 0:00:53]} 17. Bf2 {[%emt 0:02:03]} Na5 {[%emt 0:11:10]} 18. Qc2 {[%emt 0:18:23]} O-O {[%emt 0:02:42]} 19. d4 {[%emt 0:06:41]} exd4 {[%emt 0:01:43]} 0-1

[Event "Romanian Superliga 2024"]
[Site "Mamaia"]
[Date "2024.09.30"]
[Round "3.13"]
[White "Kantor, Gergely"]
[Black "Shevchenko, Kirill"]
[Result "1/2-1/2"]
[ECO "D43"]
[WhiteElo "2537"]
[BlackElo "2673"]
[Annotator "TA"]
[PlyCount "59"]
[EventDate "2024.09.26"]
[EventType "team-tourn"]
[EventCountry "ROU"]
[SourceTitle "playchess.com"]
[Source "ChessBase"]
[SourceQuality "1"]
[TimeControl "40/5400+30:1800+30"]

{[%evp 13,59,15,19,28,26,0,13,12,10,10,11,11,19,9,21,6,21,0,15,-2,-1,0,2,0,0,0,0,0,0,0,0,0,25,25,17,23,16,17,14,14,20,19,19,12,13,11,12,15]} 1. d4 {[%emt 0:00:08]} d5 {[%emt 0:00:08]} 2. c4 {[%emt 0:00:10]} e6 {[%emt 0:00:05]} 3. Nf3 {[%emt 0:00:14]} Nf6 {[%emt 0:00:07]} 4. Nc3 {[%emt 0:00:02]} c6 {[%emt 0:00:07]} 5. Bg5 {[%emt 0:03:10]} h6 {[%emt 0:00:23]} 6. Bxf6 {[%emt 0:02:54]} Qxf6 {[%emt 0:00:25]} 7. e3 {[%emt 0:00:27]} g6 {[%emt 0:00:09]} 8. Bd3 {[%emt 0:00:59]} Bg7 {[%emt 0:01:06]} 9. cxd5 {[%emt 0:02:00]} exd5 {[%emt 0:00:35]} 10. b4 {[%emt 0:00:08][%cal Bb2b4,Bb4b5][%mdl 32]} Be6 {[%emt 0:07:19]} 11. Rc1 {[%emt 0:06:42]} Nd7 {[%emt 0:00:48]} 12. b5 {[%emt 0:00:42]} c5 {[%emt 0:11:25]} 13. dxc5 {[%emt 0:04:16]} Nxc5 {[%emt 0:00:09]} 14. Bb1 {[%emt 0:02:16]} Rd8 {[%emt 0:06:54][%cal Oc5e4]} 15. Ne2 {[%emt 0:04:46]} Qe7 {[%emt 0:06:04]} 16. Nfd4 {[%emt 0:02:39]} Bg4 {[%emt 0:05:41]} 17. O-O {[%emt 0:01:49]} O-O {[%emt 0:00:17]} 18. Re1 {[%emt 0:04:49][%cal Bf1e1,Be1e2,Be2d2][%mdl 32]} Rfe8 {[%emt 0:05:20]} 19. h3 {[%emt 0:04:03]} Bxe2 {[%emt 0:00:38]} 20. Rxe2 {[%emt 0:00:44]} Bxd4 {[%emt 0:05:33]} 21. Qxd4 {[%emt 0:02:38]} Ne6 {[%emt 0:00:15]} 22. Qb2 {[%emt 0:13:45]} ({Of course not} 22. Qxa7 Ra8 23. Qb6 Red8 $17) 22... Rd7 {[%emt 0:02:23]} 23. a3 {[%emt 0:03:19]} Red8 {[%emt 0:11:49]} 24. Ba2 {[%emt 0:01:20]} Nc5 {[%emt 0:05:53]} 25. Rd2 {[%emt 0:03:44] Repels Nd3. The position is equal.} b6 {[%emt 0:00:49]} 26. Rcd1 {[%emt 0:01:32][%cal Rd2d5]} Qg5 {[%emt 0:00:18]} 27. Qd4 {[%emt 0:04:35]} Ne4 {[%emt 0:03:54]} 28. Rc2 {[%emt 0:01:47]} Nc5 {[%emt 0:00:22]} 29. a4 {[%emt 0:06:50]} Re8 {[%emt 0:02:49]} 30. Qb4 {[%emt 0:06:38] Not much happened in this game.   Weighted Error Value: White=0.03 (flawless) /Black=0.03 (flawless) .  OK:         	White=11    	Black=12} 1/2-1/2

[Event "Romanian Superliga 2024"]
[Site "Mamaia"]
[Date "2024.09.30"]
[Round "3.14"]
[White "Lupulescu, Constantin"]
[Black "Vanczak, Tamas"]
[Result "1-0"]
[ECO "E11"]
[WhiteElo "2590"]
[BlackElo "2401"]
[Annotator "TA"]
[PlyCount "117"]
[EventDate "2024.09.26"]
[EventType "team-tourn"]
[EventCountry "ROU"]
[SourceTitle "playchess.com"]
[Source "ChessBase"]
[SourceQuality "1"]
[TimeControl "40/5400+30:1800+30"]

{[%evp 40,117,131,100,116,129,127,89,101,54,45,53,127,111,122,122,126,86,84,83,101,99,100,74,65,64,115,118,239,235,216,252,244,242,246,250,237,237,241,264,264,250,221,106,112,114,119,116,103,89,81,13,17,18,44,7,7,0,0,0,0,0,0,0,6,6,6,6,6816,5085,4132,1701,29984,29984,29984,29985,29985,29986,29986,29987]} 1. d4 {[%emt 0:00:03]} Nf6 {[%emt 0:00:12]} 2. c4 {[%emt 0:00:04]} e6 {[%emt 0:00:08]} 3. Nf3 {[%emt 0:00:04]} Bb4+ {[%emt 0:06:28]} 4. Nbd2 {[%emt 0:00:17]} O-O {[%emt 0:00:08]} 5. a3 {[%emt 0:00:05]} Be7 {[%emt 1:26:04]} 6. e4 {[%emt 0:00:29]} d6 {[%emt 0:00:00] E11: Bogo-Indian.} 7. Bd3 {[%emt 0:00:29]} e5 {[%emt 0:00:00] 7...Nbd7 is vanishing.} 8. O-O {[%emt 0:00:35]} exd4 {[%emt 0:00:00]} 9. Nxd4 {[%emt 0:01:46]} Nc6 {[%emt 0:00:00] 9...Nfd7 is a critical line.} 10. Nxc6 {[%emt 0:02:17]} bxc6 {[%emt 0:00:00]} 11. b4 {[%emt 0:00:11]} a5 {[%emt 0:00:00]} 12. b5 {[%emt 0:04:17]} cxb5 $146 {[%emt 0:00:00]} ({Predecessor:} 12... Nd7 13. a4 Bf6 14. Ra3 Nc5 15. Bc2 Re8 16. Rg3 cxb5 17. cxb5 Bb7 18. Re1 Be5 {½-½ Werle,J (2511)-Delchev,A (2644) Paleochora op 7th 2014 (5)}) 13. cxb5 {[%emt 0:00:09]} Bb7 {[%emt 0:00:00]} 14. Bb2 {[%emt 0:05:07]} Nd7 {[%emt 0:00:00]} 15. Rc1 {[%emt 0:03:48]} Nc5 {[%emt 0:00:00]} 16. Nb3 {[%emt 0:08:55]} Ne6 {[%emt 0:00:00]} 17. Nd4 {[%emt 0:07:39]} Bf6 {[%emt 0:00:00]} 18. Nxe6 {[%emt 0:04:13]} fxe6 {[%emt 0:00:00]} 19. Bxf6 {[%emt 0:04:40]} Rxf6 {[%emt 0:00:00]} 20. Rc3 {[%emt 0:00:38]} Rf7 {[%emt 0:00:00]} 21. Qc2 {[%emt 0:03:51]} Qe7 {[%emt 0:00:00]} 22. Rc1 {[%emt 0:22:12]} Rc8 {[%emt 0:00:00]} 23. Qa4 {[%emt 0:06:28]} Qh4 {[%emt 0:00:00]} 24. g3 {[%emt 0:03:54]} (24. Qxa5 $2 Qxf2+ 25. Kh1 Bxe4 $19) (24. R3c2 $16) 24... Qf6 $14 {[%emt 0:00:00]} 25. R3c2 {[%emt 0:04:39]} (25. Qxa5 Qxf2+ 26. Kh1 Qf3+ 27. Kg1 Qe3+ (27... Bxe4 28. Bxe4 Qxe4 29. Qb4 $15) 28. Kh1 Rf2 (28... Bxe4+ 29. Bxe4 Qxe4+ 30. Kg1 Qd4+ 31. Kg2 Rf2+ 32. Kh3 Qd2 33. Rh1 Qh6+ 34. Kg4 Qg6+ 35. Kh4 Qe4+ 36. Kh3 h5 37. Qb4 Qxh1 38. Kh4 Rxh2+ 39. Kg5 Qd5+ 40. Kf4 Rf8+ 41. Ke3 Rf3#) (28... Bxe4+ 29. Bxe4 Qxe4+ 30. Kg1 Qd4+ 31. Kg2 Rf2+ 32. Kh3 Qd2 33. Rh1 Qh6+ 34. Kg4 Qg6+ 35. Kh4 Qe4+ 36. Kh3 Qxh1 37. Rf3 Qg2+ 38. Kh4 Qxf3 39. Qd2 Rxd2 40. h3 Rd5 41. g4 Qf2#)) 25... Rcf8 {[%emt 0:00:00]} (25... Qf3 $14 26. Qd4 h5) 26. Bf1 $16 {[%emt 0:03:54]} Qg5 {[%emt 0:01:19]} 27. Re1 {[%emt 0:01:53]} (27. Qxa5 $6 Bxe4 28. Qd2 (28. Rxc7 $2 Rxf2 29. Qc3 R2f3 $19) 28... Qd8 $15) 27... d5 {[%emt 0:02:34]} 28. Bg2 {[%emt 0:05:37]} (28. Qxa5 dxe4 29. h4 (29. Rxc7 Rxf2 30. Bh3 Qh5 $19) 29... Qd5 $14) 28... dxe4 {[%emt 0:01:13]} 29. Bxe4 {[%emt 0:00:21]} Rf4 {[%emt 0:00:44]} 30. Qc4 {[%emt 0:01:51]} Bd5 {[%emt 0:03:08]} 31. Qd3 {[%emt 0:01:03]} (31. Qxc7 $2 Rxe4 32. Rf1 Qf5 $19) (31. Qc5 {looks sharper.} Rxe4 32. Rxe4 Qh5 33. Rd4) 31... Bxe4 {[%emt 0:01:28]} 32. Rxe4 {[%emt 0:00:04]} Rxe4 {[%emt 0:01:28]} (32... Rd8 $1 $14 33. Qe2 Rxe4 34. Qxe4 Qxb5 35. Qxe6+ (35. Rxc7 Rd1+ 36. Kg2 Qf1+ 37. Kf3 Qd3+ 38. Qxd3 Rxd3+ 39. Kg4 Rd2 $15) 35... Kf8) 33. Qxe4 $16 {[%emt 0:00:02]} Qf5 {[%emt 0:00:58]} (33... Qxb5 $16 34. Qxe6+ Kh8 35. Rxc7 Qd3) 34. Qxf5 $18 {[%emt 0:01:32]} Rxf5 {[%emt 0:00:05]} 35. a4 {[%emt 0:00:03]} (35. Rxc7 Rxb5 36. Ra7 Re5 $11) 35... Rf7 {[%emt 0:00:56]} 36. Rc6 {[%emt 0:00:27]} Rd7 {[%emt 0:00:16]} 37. Ra6 {[%emt 0:00:06]} ({And not} 37. Rxe6 Rd4 $11) 37... Kf7 {[%emt 0:00:51]} 38. Rxa5 {[%emt 0:00:22]} Rd4 {[%emt 0:00:37]} 39. Ra7 {[%emt 0:00:45]} Kf6 {[%emt 0:00:09]} 40. a5 {[%emt 0:00:00]} ({But not} 40. Rxc7 $6 Rxa4 41. b6 Rb4 $16) 40... Rd5 {[%emt 0:00:00]} 41. Rb7 {[%emt 0:20:51]} (41. Rxc7 Rxb5 42. a6 Ra5 $16) (41. a6 $18 {has better winning chances. Black must now prevent Rb7.} Rxb5 42. Rxc7) 41... c6 $16 {[%emt 0:03:21]} 42. bxc6 {[%emt 0:00:09]} Rxa5 {[%emt 0:00:06]} 43. Rd7 {[%emt 0:00:05]} Rc5 {[%emt 0:02:41]} 44. c7 {[%emt 0:01:58]} h5 {[%emt 0:05:49]} 45. f4 {[%emt 0:04:39]} (45. f3 $16) 45... Rc2 $1 $11 {[%emt 0:02:52]} 46. Kf1 {[%emt 0:01:13]} h4 $1 {[%emt 0:07:29]} 47. g4 {[%emt 0:04:35]} h3 $1 {[%emt 0:01:29]} 48. g5+ {[%emt 0:02:07]} Kf5 {[%emt 0:00:47]} 49. Rxg7 {[%emt 0:00:15]} Kxf4 {[%emt 0:00:07]} 50. Ke1 {[%emt 0:00:05]} e5 {[%emt 0:01:19]} 51. Kd1 {[%emt 0:00:37]} Rc4 {[%emt 0:00:57]} 52. Ke2 {[%emt 0:00:21]} e4 {[%emt 0:01:59]} 53. Kd2 {[%emt 0:00:07]} e3+ $2 {[%emt 0:07:11][%mdl 8192]} (53... Kf5 $11) 54. Kd3 $18 {[%emt 0:00:36]} Rc6 {[%emt 0:00:16]} 55. g6 {[%emt 0:01:18]} Rd6+ {[%emt 0:01:11]} 56. Ke2 {[%emt 0:00:25]} Rd2+ {[%emt 0:00:25]} 57. Ke1 {[%emt 0:00:09]} Rc2 {[%emt 0:00:09]} 58. Rf7+ {[%emt 0:00:21]} Ke4 {[%emt 0:00:32]} 59. g7 {[%emt 0:00:16]} 1-0

[Event "Romanian Superliga 2024"]
[Site "Mamaia"]
[Date "2024.09.30"]
[Round "3.15"]
[White "Anton, Teodor"]
[Black "Parligras, Mircea-Emilian"]
[Result "1/2-1/2"]
[ECO "E08"]
[WhiteElo "2427"]
[BlackElo "2537"]
[Annotator "TA"]
[PlyCount "73"]
[EventDate "2024.09.26"]
[EventType "team-tourn"]
[EventCountry "ROU"]
[SourceTitle "playchess.com"]
[Source "ChessBase"]
[SourceQuality "1"]
[TimeControl "40/5400+30:1800+30"]

{[%evp 18,73,18,7,2,0,2,0,0,0,0,0,0,0,0,0,0,0,0,0,0,0,21,0,0,0,0,0,0,0,0,10,151,112,264,256,391,379,354,89,99,70,200,205,167,0,0,0,0,0,0,0,0,0,0,0,0,0]} 1. d4 {[%emt 0:00:06]} Nf6 {[%emt 0:00:11]} 2. c4 {[%emt 0:00:31]} e6 {[%emt 0:00:11]} 3. Nf3 {[%emt 0:00:12]} d5 {[%emt 0:00:35]} 4. g3 {[%emt 0:00:21]} Bb4+ {[%emt 0:00:49]} 5. Bd2 {[%emt 0:01:26]} Be7 {[%emt 0:00:34]} 6. Bg2 {[%emt 0:00:40]} c6 {[%emt 0:00:47]} 7. Qc2 {[%emt 0:00:34]} Nbd7 {[%emt 0:00:18]} 8. O-O {[%emt 0:00:17]} O-O {[%emt 0:00:27]} 9. Rd1 {[%emt 0:01:44]} b6 {[%emt 0:01:27]} 10. Bf4 {[%emt 0:00:31]} Ba6 {[%emt 0:06:28]} 11. Ne5 {[%emt 0:01:15]} Rc8 {[%emt 0:00:49]} 12. Nc3 {[%emt 0:00:06]} Bxc4 {[%emt 0:05:41]} 13. Nxc4 {[%emt 0:00:26]} dxc4 {[%emt 0:00:04]} 14. e4 {[%emt 0:00:19] Inhibits Nd5.} b5 {[%emt 0:04:10]} 15. a4 {[%emt 0:00:22]} a6 {[%emt 0:01:50]} 16. axb5 {[%emt 0:00:11]} axb5 {[%emt 0:00:09]} 17. d5 {[%emt 0:00:06]} cxd5 {[%emt 0:05:56]} 18. exd5 {[%emt 0:00:09] [#] aiming for d6.} e5 {[%emt 0:00:18]} 19. Bg5 $36 {[%emt 0:00:08][%cal Od5d6][%mdl 2048] d6! is the strong threat. White is pushing.} Qb6 {[%emt 0:09:01]} 20. Bh3 {[%emt 0:07:01] And now Bxd7 would win.} Bc5 $1 {[%emt 0:06:08]} 21. Bxf6 {[%emt 0:02:31]} Nxf6 {[%emt 0:00:07]} 22. Bxc8 {[%emt 0:00:14]} Rxc8 {[%emt 0:00:05]} 23. Qf5 {[%emt 0:01:27]} Re8 {[%emt 0:05:09]} 24. d6 {[%emt 0:11:21] Strongly threatening d7.} Bd4 {[%emt 0:13:28]} (24... Qc6 $1 $11) 25. Qf3 {[%emt 0:13:23] Black must now prevent Ra8.} b4 $2 {[%emt 0:23:55]} (25... Qxd6 26. Nxb5 Qb8 27. Nxd4 exd4 28. b3 $18 (28. Rxd4 Qxb2 29. Qd1 g6 $18)) (25... Kf8 $16) 26. Ra8 $18 {[%emt 0:03:40]} Kf8 {[%emt 0:00:44]} (26... bxc3 $2 27. Rxe8+ Nxe8 28. d7 $18 (28. bxc3 Qxd6 29. cxd4 exd4 $18)) (26... Qxd6 $142 27. Nb5 Bxf2+ 28. Kg2 Qe7) 27. Rxe8+ {[%emt 0:32:21]} Kxe8 {[%emt 0:00:06][%cal Bf8e8,Be8d7,Bd7e6][%mdl 32]} 28. Qa8+ $2 {[%emt 0:02:26]} (28. Ne2 $18 {and the rest is easy.} Kd7 29. Nxd4 exd4 30. Qf4) 28... Kd7 $16 {[%emt 0:00:05]} 29. Nd5 {[%emt 0:01:10] Chess con chili. White is more active.} Qxd6 {[%emt 0:02:53] [#]} (29... Nxd5 $14 30. Qxd5 Bxf2+ 31. Kg2 Bd4) 30. Qb7+ $1 $18 {[%emt 0:02:37]} (30. Qa4+ Qc6 31. Nxf6+ (31. Qxb4 $2 Qxd5 32. h3 Bxf2+ 33. Kxf2 Qxd1 $19) (31. Rxd4 $2 Qxa4 32. Nxf6+ Ke6 $19) 31... gxf6 32. Qxb4 f5 $16) 30... Ke6 {[%emt 0:00:05]} 31. Nxf6 {[%emt 0:01:48]} (31. Nxb4 Bxf2+ 32. Kxf2 Qxd1 33. Qc8+ Ke7 34. Qc7+ Ke6 35. Qc8+ Ke7 36. Qc7+ Qd7 37. Qxe5+ Kf8 (37... Qe6 38. Nc6+ Kd7 39. Nb8+ Kc8 40. Qxe6+ fxe6 41. Nc6 $17) 38. Qc5+ Kg8 39. Qxc4 h5 $15) (31. Nc7+ $18 Kf5 32. Qf3+ Kg6 33. Nb5) 31... Bxf2+ $1 $11 {[%emt 0:07:15] The position is equal.} 32. Kxf2 {[%emt 0:00:55]} Qxd1 {[%emt 0:00:05]} 33. Ne4 {[%emt 0:02:00] Threatens to win with Qc8+.} Qc2+ {[%emt 0:01:49]} 34. Kf3 {[%emt 0:01:45] White wants to mate with Qc6+.} Qb3+ {[%emt 0:02:27]} ({Not} 34... Qxh2 35. Qc6+ (35. Qxb4 Qh1+ 36. Ke3 Qg1+ 37. Ke2 Qg2+ 38. Nf2 Qc6 $14) 35... Ke7 36. Qc7+ (36. Qxc4 Qh1+ 37. Ke2 Qh5+ 38. Kd2 Qh6+ 39. Kc2 f6 $18) 36... Ke6 37. Qd6+ Kf5 38. g4#) 35. Kg4 {[%emt 0:00:53]} f5+ {[%emt 0:00:38]} ({Weaker is} 35... Qxb2 36. Qc6+ Ke7 37. Qc7+ (37. Qxc4 h5+ 38. Kf5 g6+ 39. Kg5 Qd4 $18) 37... Ke8 38. Nd6+ Kf8 39. Qxf7#) 36. Kh4 {[%emt 0:00:15] Threatening mate with Qc6+.} fxe4 {[%emt 0:00:40]} 37. Qc6+ $1 {[%emt 0:00:05] White really could win this.   Weighted Error Value: White=0.24 (precise) /Black=0.32.  Missed win:     	White=2     	---        Mistake:       	---       	Black=4      OK:         	White=14    	Black=8      Best:        	White=3     	Black=5      Strong:       	White=1     	Black=2} 1/2-1/2